Cogmind - Beta 10.2 @@@ ROGUE MODE // 2021.04.01 @ 22:39:48 Player: Zyll Result: Destroyed by G-34 Mercenary with Small Laser Performance ------------- Evolutions (1) 500 Regions Visited (2) 400 Robots Destroyed (6) 30 Value Destroyed (156) 156 Prototype IDs (0) 0 Alien Tech Used (0) 0 Bonus (0) 0 TOTAL SCORE: 1086 Bonus ------- None Cogmind --------- Core Integrity 0/400 Matter 265/300 Energy 93/100 System Corruption 1% Temperature Cool (12) Movement Treading (160) Location -9/Materials Parts ------- > --- POWER (1) -------- (None) > --- PROPULSION (3) --- Light Treads > --- UTILITY (3) ------ Light Armor Plating > --- WEAPON (2) ------- Heavy Assault Rifle > --- INVENTORY (4) ---- Light Treads Peak State ------------ > --- POWER ------------ (None) > --- PROPULSION ------- Armored Wheel Armored Wheel Armored Wheel > --- UTILITY ---------- Medium Matter Pod > --- WEAPON ----------- Spread Laser Flail > --- INVENTORY -------- (None) [Rating: 11] Favorites ----------- Power Improved Ion Engine Engine Improved Ion Engine Propulsion Wheel Treads Light Treads Wheel Wheel Utility Medium Matter Pod Storage Medium Matter Pod Protection Light Armor Plating Weapon Small Laser Energy Gun Small Laser Energy Cannon Beam Cannon Ballistic Gun Heavy Assault Rifle Impact Weapon Flail Build | -11 -10 -9 ------- Run | Scr Mat Mat Slots Evolved 2 | . . 2 Power . | . . . Propulsion 1 | . . 1 Utility 1 | . . 1 Weapon . | . . . Parts Attached 16 | . 8 8 Power 1 | . . 1 Engine 1 | . . 1 Core . | . . . Reactor . | . . . Propulsion 6 | . 2 4 Treads 1 | . . 1 Leg . | . . . Wheel 5 | . 2 3 Hover . | . . . Flight . | . . . Utility 2 | . 1 1 Device . | . . . Storage 1 | . 1 . Processor . | . . . Hackware . | . . . Protection 1 | . . 1 Artifact . | . . . Weapon 7 | . 5 2 Energy Gun 4 | . 3 1 Energy Cannon 1 | . 1 . Ballistic Gun 1 | . . 1 Ballistic Cannon . | . . . Launcher . | . . . Special Weapon . | . . . Impact Weapon 1 | . 1 . Slashing Weapon . | . . . Piercing Weapon . | . . . Special Melee Weapon . | . . . Unidentified Prototypes . | . . . Parts Lost 7 | . 1 6 Power 1 | . . 1 Propulsion 2 | . . 2 Utility 1 | . . 1 Weapon 3 | . 1 2 Highest Loss Streak 5 | . 1 5 Average Slot Usage (%) 48 | . 47 48 Wheel 24 | . 25 23 Storage 6 | . 4 9 Energy Gun 10 | . 14 5 Energy Cannon 1 | . 2 . Impact Weapon 4 | . 1 9 Naked Turns 24 | . 23 1 Heaviest Build 13 | . 8 13 Greatest Support 36 | 3 20 36 Greatest Overweight (x) 4 | . . 4 Average Overweight (x) . | . . . Largest Inventory Capacity 4 | 4 4 4 Average Capacity 4 | 4 4 4 Most Carried 4 | 4 4 1 Average Carried . | 2 . . Final Capacity 4 | 4 4 4 Final Carried 4 | 4 . 1 Class Distribution -------------------- 100% | Mutant Dominant Class ---------------- Mutant | -10/Materials Mutant | -9/Materials Resources | -11 -10 -9 ----------- Run | Scr Mat Mat Matter Collected 252 | 75 137 40 Remotely . | . . . Salvage Created 209 | . 149 60 Parts 10 | . 4 6 Haulers Intercepted . | . . . Recyclers Shooed . | . . . Parts Field Recycled . | . . . Retrieved Matter . | . . . Parts Self-Destructed . | . . . Prevented . | . . . Kills | -11 -10 -9 ------- Run | Scr Mat Mat Combat Hostiles Destroyed 6 | . 5 1 Melee 1 | . . 1 Guns 5 | . 5 . Classes Destroyed 3 | . 2 1 Swarmer 3 | . 3 . Grunt 2 | . 2 . Sentry 1 | . . 1 Best Kill Streak 5 | . 5 1 Combat Bots Only 5 | . 5 1 Max Kills in Single Turn 1 | . 1 1 Gunslinging . | . . . Exploded . | . . . Melee 1 | . . 1 Uniques/NPCs Destroyed . | . . . Combat | -11 -10 -9 -------- Run | Scr Mat Mat Damage Taken 1203 | . 223 980 Core 500 | . 95 405 Absorbed by Shields . | . . . Core Remaining (%) 81 | 100 62 . Volleys Fired 22 | . 18 4 Largest 2 | . 2 1 Hottest 80 | . 80 65 Shots Fired 31 | . 27 4 Gun 31 | . 27 4 Cannon . | . . . Launcher . | . . . Special . | . . . Kinetic . | . . . Thermal 31 | . 27 4 Explosive . | . . . Electromagnetic . | . . . Robot Hit Streak 6 | . 6 6 Robot Miss Streak 2 | . 2 2 Penetration Max . | . . . Secondary Targets . | . . . Shots Hit Robots 26 | . 18 8 Core Hits 20 | . 9 11 Critical Hits . | . . . Critical Kills . | . . . Critical Parts Destroyed . | . . . Melee Attacks 4 | . . 4 Impact 4 | . . 4 Slashing . | . . . Piercing . | . . . Sneak Attacks . | . . . Combat Hostiles . | . . . Follow-up Attacks . | . . . Damage Inflicted 406 | . 186 220 Guns 257 | . 186 71 Cannons . | . . . Explosions . | . . . Melee 126 | . . 126 Ramming 23 | . . 23 Kinetic . | . . . Thermal 257 | . 186 71 Explosive . | . . . Electromagnetic . | . . . Impact 126 | . . 126 Slashing . | . . . Piercing . | . . . Highest Corruption 2 | . 2 1 Average Corruption 1 | . 2 1 Corruption Purged . | . . . Overload Shots . | . . . Overflow Damage 25 | . . 25 Projectiles . | . . . Explosions . | . . . Melee 25 | . . 25 Knockbacks 1 | . . 1 Impact 1 | . . 1 Kinetic . | . . . Secondary . | . . . Self-Inflicted Damage 8 | . . 8 Shots . | . . . Rammed 11 | . . 11 Targets Rammed 11 | . . 11 Kicked . | . . . Crushed . | . . . Highest Temperature 62 | . 55 62 Average Temperature 19 | . 16 27 Received Heat Transfer 453 | . 66 387 Siege Activations . | . . . Robots Corrupted . | . . . Combat Hostiles . | . . . Parts Fried . | . . . Impact Corruptions 1 | . . 1 Robots Melted . | . . . Combat Hostiles . | . . . Parts Melted 1 | . 1 . Heat Transferred 520 | . 425 95 Parts Sabotaged . | . . . Parts Stolen . | . . . Parts Stripped . | . . . Power Chain Reactions . | . . . Missiles Intercepted . | . . . Alert | -11 -10 -9 ------- Run | Scr Mat Mat Peak Influence 130 | . 121 130 Initial 50 | . . 50 Average 75 | . 94 63 Maximum Alert Level . | . . . Low Security (%) 100 | 100 100 100 Level 1 . | . . . Level 2 . | . . . Level 3 . | . . . Level 4 . | . . . Level 5 . | . . . High Security . | . . . Max Security . | . . . Squads Dispatched 1 | . . 1 Investigation . | . . . Extermination . | . . . Reinforcement 1 | . . 1 Assault . | . . . Garrison . | . . . Intercept . | . . . Construction Impeded . | . . . Haulers Reinforced . | . . . Stealth | -11 -10 -9 --------- Run | Scr Mat Mat Distress Signals . | . . . Communications Jammed . | . . . Distress Signals . | . . . Times Spotted 18 | . 8 10 Peak Tracking Total 7 | . 4 7 Tactical Retreats 2 | . . 2 Traps | -11 -10 -9 ------- Run | Scr Mat Mat Traps Triggered 1 | . 1 . Indirectly . | . . . Trap Hack Attempts . | . . . Triggered . | . . . Disarmed . | . . . Reprogrammed . | . . . Reused . | . . . Traps Extracted . | . . . Installed . | . . . Triggered . | . . . Machines | -11 -10 -9 ---------- Run | Scr Mat Mat Machines Disabled . | . . . Max in Single Turn . | . . . Machines Sabotaged . | . . . Garrisons Compromised . | . . . Overloaded Fab Kills . | . . . Fab Network Shutdowns . | . . . Hacking | -11 -10 -9 --------- Run | Scr Mat Mat Machines Accessed 2 | . 1 1 Terminals 2 | . 1 1 Fabricators . | . . . Repair Stations . | . . . Recycling Units . | . . . Scanalyzers . | . . . Garrison Access . | . . . Total Hacks 9 | . 6 3 Successful 6 | . 5 1 Failed 3 | . 1 2 Catastrophic . | . . . Database Lockouts . | . . . Manual . | . . . Terminals 9 | . 6 3 Fabricators . | . . . Repair Stations . | . . . Recycling Units . | . . . Scanalyzers . | . . . Garrison Access . | . . . Terminal Hacks 6 | . 5 1 Record 4 | . 4 . Robot Analysis 1 | . . 1 Emergency Access Points 1 | . 1 . Fabricator Hacks . | . . . Repair Station Hacks . | . . . Recycling Unit Hacks . | . . . Scanalyzer . | . . . Garrison Access Hacks . | . . . Unauthorized Hacks . | . . . Terminals . | . . . Fabricators . | . . . Repair Stations . | . . . Recycling Units . | . . . Scanalyzers . | . . . Garrison Access . | . . . Data Cores Recovered . | . . . Used . | . . . Hacking Detections 2 | . 1 1 Full Trace Events . | . . . Feedback Events . | . . . Feedback Blocked . | . . . Robot Schematics Acquired . | . . . Robots Built . | . . . Matter . | . . . Time . | . . . Total Robot Build Rating . | . . . Part Schematics Acquired . | . . . Parts Built . | . . . Matter . | . . . Time . | . . . Total Part Build Rating . | . . . Parts Repaired . | . . . Time . | . . . Parts Recycled . | . . . Recycled Matter . | . . . Retrieved Matter . | . . . Retrieved Components . | . . . Parts Scanalyzed . | . . . Part Schematics Acquired . | . . . Parts Damaged . | . . . Bothacking | -11 -10 -9 ------------ Run | Scr Mat Mat Used RIF Installer . | . . . Robots Hacked . | . . . Non-combat . | . . . Combat . | . . . Robot Hacks Applied . | . . . Relay Couplers Released . | . . . Robots Rewired . | . . . Allies Hacked . | . . . Hacks Repelled . | . . . Allies | -11 -10 -9 -------- Run | Scr Mat Mat Total Allies . | . . . Largest Group . | . . . Highest-Rated Group . | . . . Highest-Rated Ally . | . . . Total Orders . | . . . Ally Attacks . | . . . Total Damage . | . . . Kills . | . . . Allies Corrupted . | . . . Allies Melted . | . . . Intel | -11 -10 -9 ------- Run | Scr Mat Mat Robot Analysis Total 1 | . . 1 Derelict Logs Recovered . | . . . Drone Launches . | . . . Drone Recoveries . | . . . Exploration | -11 -10 -9 ------------- Run | Scr Mat Mat Turns Passed 414 | 29 213 172 Spaces Moved 382 | 32 211 139 Core 81 | 32 44 5 Treads 1 | . . 1 Legs . | . . . Wheels 300 | . 167 133 Hover . | . . . Flight . | . . . Fastest Speed 50 | 50 50 50 Average Speed 77 | 50 73 89 Slowest Speed 250 | 50 80 250 Overloaded Moves . | . . . Propulsion Burnouts . | . . . Robots Hopped . | . . . Cave-ins Triggered . | . . . Exploration Rate (%) 15 | 4 27 15 Regions Visited 2 Branch Regions . Pre-discovered Areas . | . . . Known Exits Taken . | . . . Unknown Exits Taken 2 | 1 1 . Scrap Searched . | . . . Spaces Dug . | . . . Terrain Destroyed . | . . . Melee . | . . . Projectile . | . . . AOE . | . . . Terrain Rammed . | . . . Walls Destroyed . | . . . Machines Disabled . | . . . Actions | -11 -10 -9 --------- Run | Scr Mat Mat Total 464 | 44 242 178 Wait 9 | 9 . . Move 380 | 31 210 139 Hop . | . . . Pick Up 17 | 4 4 9 Fast Attach . | . . . Attach 16 | . 8 8 Detach . | . . . Swap . | . . . Drop 5 | . 2 3 Fire 22 | . 18 4 Melee 4 | . . 4 Ram 11 | . . 11 Kick . | . . . Crush . | . . . Escape Stasis . | . . . Rewire . | . . . Trap . | . . . Miscellaneous . | . . . Route ------- -11/Scrapyard -10/Materials -9/Materials History --------- Turn | Location | Event 22 | -11/Scrapyard | Discovered new exit (range 15) 30 | -11/Scrapyard | Entered Materials 146 | -10/Materials | Discovered new exit (range 9) 243 | -10/Materials | Entered another Materials area 243 | -9/Materials | Evolved 2 slots: Propulsion x1, Utility x1 307 | -9/Materials | Build established: Mutant 353 | -9/Materials | Core integrity fell below 50% 398 | -9/Materials | Core integrity fell below 20% 415 | -9/Materials | Destroyed by G-34 Mercenary with Small Laser Last Messages --------------- 00371_ K-01 Serf collects debris. 00385_ Flail destroyed. 00387_ Slammed into Y-45 Defender. 00388_ Med. Matter Pod destroyed. 00389_ Slammed into Y-45 Defender. 00390_ Arm. Wheel permanently disabled. 00390_ Destabilizing: Short circuit. 00391_ Slammed into Y-45 Defender. 00391_ Destabilizing: System corrupted (+1). 00392_ Slammed into Y-45 Defender. 00394_ Arm. Wheel destroyed. 00395_ Slammed into Y-45 Defender. 00397_ Y-45 Defender destroyed. 00398_ Acquired 40 matter. 00399_ Acquired Imp. Ion Engine. 00399_ Broken Arm. Wheel destroyed. 00402_ Acquired Hvy. Assault Rifle. 00406_ Acquired Lgt. Armor Plating. 00409_ Imp. Ion Engine destroyed. 00411_ Acquired Lgt. Treads. Map ----- +----------------------------------------------------+ | | | ?????????????????????????????? | | ?????????????????????????????? | | ?????????????????????????????? | | ?????????????????????????????? | | ?????????????????????????????? | | ?????????????????????????????? | | ?????????????????????????????? | | ?????????????????????????????? | | ???????????? ???????????????? | | ?????????? ????????????????? | | ##??????? #????????????????? | | ?????? #????????????????? | | ?????? ????#########????? | | ????? ?????? #????? | | ????? #####+#### #????? | | #/##### # # #????? | | # + #????? | | # ##### #????? | | # #???# #????? | | ## + #?###g###??? | | ?# ##### #?# g #??? | | ?# #???# #?# ggg #??? | | ?# #???# #?# #??? | | ?# #???# #?# !#??? | | ?# #???####/#####?# %@#??? | | ## ##???# #???#######??? | | # ##### #????????????? | | T #????????????? | | #????????????? | | #????????????? | | # ###### ##????????????? | | ###+#####??# #?????????????? | | #??# #?????????????? | | #??# #?????????????? | | #??# #?????????????? | | #??# #?????????????? | | #??# #?????????????? | | //! #??# #?????????????? | | /!! !#??? #?????????????? | | /!! #??? #?????????????? | | #??? #?????????????? | | #########??? #?????????????? | | ?????????????????????????????? | | ?????????????????????????????? | | ?????????????????????????????? | | ?????????????????????????????? | | ?????????????????????????????? | | ?????????????????????????????? | | ?????????????????????????????? | +----------------------------------------------------+ Best States ------------- Heat Dissipation 28 Energy Generation 5 Energy Capacity 100 Matter Stores 300 Matter Capacity 400 Sight Range 16 Terrain Scan Density 10 Armor Coverage 150 Evasion (%) 50 Item Schematics ----------------- None Robot Schematics ------------------ None Fabricated ------------ Nothing Alien Tech Used ----------------- None Achievements -------------- None Challenges ------------ None Game ------ Seed PotentialCloakingMace Manual? 0 Play Time 00:10:25 Cumulative 2.9 hours Start 2021.03.05 @ 22:09:01 End 2021.04.01 @ 22:39:48 Sessions 4 Manual Loads 0 Difficulty Rogue Special Mode None Game No. 4 Rogue 4 Adventurer 0 Explorer 0 Win Type - Total 0 Types 0/0/0/0/0/0/0/0/0 Lore% 6 Gallery% 6 Achievement% 14 Wizard Run 0 Options --------- ASCII 0 Keyboard 0 Movement Mouse Keybinds 0 Fullscreen 1 Font 24/Smallcaps Map View 76x50 Tactical HUD 1 Map Filters NONE Filters NONE Steam 1 RUN: 04927260-bd84-4a4c-a353-aeaa638a39af